bitfinex/quotes_ETHUSD_20250925
["timestamp","ask_amount","ask_price","bid_price","bid_amount"]
[1758843470896,2.57811694,3878.8,3878.7,0.02578183]
[1758843471087,2.57818341,3878.7,3878.6,2.147]
[1758843471253,2.57818341,3878.7,3877.1,0.2575]
[1758843471254,0.6961,3878.7,3877.1,0.2575]
[1758843471449,0.6961,3878.7,3877.2,8.859]
[1758843471450,2.57824988,3878.6,3877.2,8.859]
[1758843471678,2.57838283,3878.4,3877.3,5.51]
[1758843471876,2.57893087,3877.6,3877.4,0.02579047]
[1758843472083,2.5789813,3877.5,3877.4,0.02579047]
[1758843472388,2.5789813,3877.5,3877.4,7.654]
[1758843472612,2.57918085,3877.2,3877.1,0.02]
[1758843473112,3.27528085,3877.2,3877.1,0.02]
[1758843473481,3.86071372,3877.2,3877.1,1e-08]
[1758843474527,2.57918085,3877.2,3877.1,1e-08]
[1758843474685,2.57918085,3877.2,3877.1,0.12880001]
[1758843474886,0.8249,3877.8,3877.1,0.12880001]
[1758843475081,2.57918085,3877.2,3877.1,0.12880001]
[1758843475318,2.57918085,3877.2,3877.1,2.14800001]
[1758843475507,2.57918085,3877.2,3877.1,2.27680001]
[1758843475735,0.6961,3877.8,3877.1,2.27680001]
[1758843475736,0.2319,3878.4,3877.1,2.27680001]
[1758843475937,2.57844932,3878.3,3877.2,5.5027918]
[1758843476229,2.57898052,3877.6,3877.2,5.477]
[1758843476394,2.57864878,3878.0,3877.9,0.1288]
[1758843476732,2.57864878,3878.0,3877.9,5.474]
[1758843477090,2.57864878,3878.0,3877.9,5.6028]
[1758843477422,2.57884828,3877.7,3877.6,5.47]
[1758843477929,2.57884828,3877.7,3877.6,5.5988]
[1758843478229,0.1288,3878.4,3877.6,5.5988]
[1758843478538,3.0,3878.4,3877.7,0.02578848]
[1758843478679,0.6961,3878.6,3877.7,0.02578848]
[1758843478882,2.5785158,3878.2,3878.1,0.1288]
[1758843479809,3.0427158,3878.2,3878.1,0.1288]
[1758843480031,2.57871528,3877.9,3877.8,5.445]
[1758843480395,2.57871528,3877.9,3877.8,5.5738]
[1758843480728,3.8249,3878.8,3877.8,5.5738]
[1758843480885,2.59673188,3880.9,3877.9,0.02578715]
[1758843480886,2.57778465,3879.3,3877.9,0.02578715]
[1758843481087,2.57804615,3879.0,3878.7,0.1288]
[1758843481330,0.1288,3879.7,3878.8,7.583]
[1758843481487,2.57798401,3879.0,3878.9,2.1737805]
[1758843481682,0.2529,3879.9,3878.9,2.2768]
[1758843481908,2.57751888,3879.7,3879.6,0.1288]
[1758843483538,0.6961,3879.7,3879.6,0.701]
[1758843483819,0.021,3879.9,3879.6,0.701]
[1758843484026,0.021,3879.9,3879.6,0.72677585]
[1758843484226,2.57751888,3879.7,3879.6,0.701]
[1758843484887,2.57791755,3879.1,3879.0,2.147]
[1758843485091,1.22949161,3879.7,3878.0,0.246]
[1758843485092,0.75989161,3879.7,3878.0,0.246]
[1758843485292,2.57816668,3878.8,3878.1,2.979]
[1758843485491,0.7119,3879.6,3878.1,2.979]
[1758843485741,0.7119,3879.6,3878.2,0.02578515]
[1758843486040,0.42504916,3879.6,3878.3,0.246]
[1758843486202,0.021,3879.9,3878.3,0.246]
[1758843486388,0.7119,3879.8,3878.3,0.246]
[1758843486586,2.57831635,3878.5,3878.4,2.745]
[1758843486801,2.57798139,3879.1,3878.4,2.745]
[1758843487019,2.57817068,3878.8,3878.4,2.745]
[1758843487336,2.57817068,3878.8,3878.0,6.712]
[1758843487337,0.7119,3879.3,3878.5,2.147]
[1758843487638,0.4696,3879.2,3878.2,2.147]
[1758843487798,2.57844932,3878.3,3878.2,7.539]
[1758843488599,0.7119,3878.3,3877.7,2.147]
[1758843488792,2.57878178,3877.8,3877.7,2.147]
[1758843488995,3.29068178,3877.8,3877.7,2.147]
[1758843489198,2.57918085,3877.2,3877.1,2.14700001]
[1758843489417,2.57918085,3877.2,3877.1,1e-08]
[1758843489930,3.29108085,3877.2,3877.1,1e-08]
[1758843490230,6.29108085,3877.2,3877.1,1e-08]
[1758843490732,7.08308085,3877.2,3877.1,1e-08]
[1758843490902,8.04929733,3877.2,3877.1,1e-08]
[1758843491229,8.04929733,3877.2,3877.1,0.00200001]
[1758843491430,5.57984624,3876.2,3876.1,1e-08]
[1758843491791,6.29174624,3876.2,3876.1,1e-08]
[1758843491995,7.71519544,3876.2,3876.1,1e-08]
[1758843492211,2.58084496,3874.7,3874.6,5.563]
[1758843492405,2.1353492,3876.2,3874.1,0.266]
[1758843492406,3.0,3875.8,3874.1,0.266]
[1758843492617,2.58084496,3874.7,3874.6,5.358]
[1758843493407,2.58084496,3874.7,3874.6,5.4868]
[1758843494016,2.58084496,3874.7,3874.6,0.1288]
[1758843494629,2.58084496,3874.7,3874.6,0.3748]
[1758843495526,2.58084496,3874.7,3874.6,0.1288]
[1758843495733,2.58057923,3875.1,3874.3,2.148]
[1758843495931,0.1288,3876.1,3874.6,0.3748]
[1758843496229,2.58057856,3875.1,3875.0,0.1288]
[1758843496434,2.58057856,3875.1,3875.0,7.728]
[1758843496730,2.58057856,3875.1,3875.0,0.1288]
[1758843496932,0.3711,3876.2,3875.0,7.6078]
[1758843497105,2.58052015,3875.2,3875.0,7.725]
[1758843497306,2.58004592,3875.9,3875.8,0.1288]
[1758843497531,2.58051197,3875.2,3875.1,0.1288]
[1758843497859,2.58117804,3874.2,3874.1,0.02]
[1758843498019,2.58091157,3874.6,3874.5,2.635]
[1758843498599,2.58091157,3874.6,3874.5,2.8685]
[1758843498800,2.58091157,3874.6,3874.5,3.2874]
[1758843499196,2.58091157,3874.6,3874.5,2.8685]
[1758843500960,2.58117804,3874.2,3874.1,0.02]
[1758843501162,2.58117804,3874.2,3874.1,2.169]
[1758843502546,2.58117804,3874.2,3874.1,0.02]
[1758843502729,3.03797804,3874.2,3874.1,0.02]
[1758843502927,2.58117804,3874.2,3874.1,0.02]
[1758843503514,3.03797804,3874.2,3874.1,0.02]
[1758843503719,2.58117804,3874.2,3874.1,0.02]
[1758843504156,3.26627804,3874.2,3874.1,0.02]
[1758843504833,2.58144457,3873.8,3873.7,7.433]
[1758843505329,2.58184446,3873.2,3873.1,0.02]
[1758843505647,2.58184446,3873.2,3873.1,3.576]
[1758843506042,0.6851,3874.2,3873.1,3.576]
[1758843506245,2.58177781,3873.3,3873.2,0.02581844]
[1758843506418,2.58158873,3873.6,3873.1,3.8095]
[1758843506624,2.58158776,3873.6,3873.2,0.2335]
[1758843506853,2.58172335,3873.4,3873.3,0.2335]
[1758843507032,2.58161098,3873.6,3873.3,0.2335]
[1758843507233,3.0,3874.8,3873.4,0.6524]
[1758843507438,2.58091157,3874.6,3873.4,0.2335]
[1758843507656,2.58177284,3873.4,3873.1,3.576]
[1758843507965,2.58184446,3873.2,3873.1,0.02]
[1758843508255,2.58184446,3873.2,3873.1,7.429]
[1758843508460,2.58184446,3873.2,3873.1,0.02]
[1758843508618,3.55500403,3873.2,3873.1,0.1488]
[1758843508823,3.03864446,3873.2,3873.1,0.1488]
[1758843509024,2.58184446,3873.2,3873.1,0.1488]
[1758843509761,0.4568,3874.6,3873.1,0.3823]
[1758843509959,2.58184446,3873.2,3873.1,0.1488]
[1758843510159,2.58184446,3873.2,3873.1,7.5518]
[1758843510457,2.58184446,3873.2,3873.1,7.5538]
[1758843510641,0.1288,3874.2,3873.1,7.5538]
[1758843510642,1.06978405,3874.5,3873.1,7.7873]
[1758843510846,3.0,3874.2,3873.1,7.7873]
[1758843511151,2.58184446,3873.2,3873.1,7.6585]
[1758843511367,2.58184446,3873.2,3873.1,0.1508]
[1758843511858,2.58178233,3873.3,3873.1,0.1508]
[1758843512061,0.4568,3874.4,3873.1,0.2555]
[1758843512227,2.5815913,3873.6,3873.2,0.02581844]
[1758843512423,2.58149963,3873.8,3873.3,0.6524]
[1758843512660,3.0,3874.6,3873.7,0.1288]
[1758843512888,2.58137793,3873.9,3873.8,7.41681444]
[1758843513035,2.58137793,3873.9,3873.8,7.391]
[1758843513239,0.4568,3874.9,3873.8,7.6245]
[1758843513466,2.5813113,3874.0,3873.9,7.383]
[1758843513827,2.58084866,3874.7,3873.9,7.7453]
[1758843514029,3.4568,3875.5,3874.6,0.1288]
[1758843514340,0.74548992,3875.3,3874.6,0.1288]
[1758843514538,2.58084496,3874.7,3874.6,0.1288]
[1758843515060,0.4568,3874.7,3873.5,0.2335]
[1758843515266,2.58151121,3873.7,3873.0,6.719]
[1758843515434,2.58184446,3873.2,3873.0,7.374]
[1758843515961,2.58184446,3873.2,3873.1,5.245]
[1758843516265,0.2283,3874.0,3873.1,7.395]
[1758843516438,2.58184446,3873.2,3873.1,7.395]
[1758843516650,2.58174773,3873.4,3873.1,7.6285]
[1758843516858,2.58184446,3873.2,3873.1,7.6285]
[1758843517047,2.58184446,3873.2,3873.1,7.395]
[1758843517377,2.58184446,3873.2,3873.1,0.022]
[1758843517581,2.58184446,3873.2,3873.1,7.389]
[1758843517942,2.58184446,3873.2,3873.1,0.022]
[1758843518139,2.58076803,3874.9,3873.1,0.022]
[1758843518140,3.0,3874.3,3873.1,7.6155]
[1758843518344,0.4568,3874.6,3873.2,0.81781844]
[1758843518545,0.4568,3874.6,3873.3,7.5985]
[1758843518745,2.58163146,3873.6,3873.3,7.5985]
[1758843518973,0.4568,3874.6,3873.4,0.25931711]
[1758843519177,0.4568,3874.6,3873.5,7.371]
[1758843519341,2.58157786,3873.6,3873.5,7.371]
[1758843519745,0.2283,3874.3,3873.5,5.217]
[1758843519940,0.2283,3874.3,3873.1,0.022]
[1758843519941,2.58184446,3873.2,3873.1,0.022]
[1758843520167,2.58184446,3873.2,3873.1,7.386]
[1758843520746,2.58184446,3873.2,3873.1,5.233]
[1758843521047,2.58184446,3873.2,3873.1,7.383]
[1758843521247,2.80933052,3874.5,3873.1,8.0354]
[1758843521446,0.2283,3874.5,3873.2,0.02581844]
[1758843521864,2.58184446,3873.2,3873.1,0.022]
[1758843522983,2.58184446,3873.2,3873.1,6.56]
[1758843524000,3.03864446,3873.2,3873.1,6.56]
[1758843524290,2.58184446,3873.2,3873.1,6.56]
[1758843524491,2.58184446,3873.2,3873.1,0.022]
[1758843524880,2.58184446,3873.2,3873.1,4.374]
[1758843525088,2.58184446,3873.2,3873.1,4.5028]
[1758843525591,2.5813113,3874.0,3873.1,4.7363]
[1758843525793,3.0,3873.9,3873.1,4.7363]
[1758843525956,0.4568,3874.3,3873.9,0.1288]
[1758843526160,2.5813113,3874.0,3873.9,0.1288]
[1758843526494,2.58184446,3873.2,3873.1,0.022]
[1758843526697,2.58184446,3873.2,3873.1,7.355]
[1758843526892,2.58184446,3873.2,3873.1,0.1508]
[1758843527104,2.58184446,3873.2,3873.1,7.4818]
[1758843527288,2.58184446,3873.2,3873.1,0.1508]
[1758843527792,3.03864446,3873.2,3873.1,0.1508]
[1758843527992,2.58184446,3873.2,3873.1,5.2078]
[1758843528759,2.5813724,3874.0,3873.1,5.2078]
[1758843528965,2.58145564,3873.8,3873.2,0.2341]
[1758843529161,2.58211113,3872.8,3872.7,0.002]
[1758843530001,2.58251123,3872.2,3871.5,0.2341]
[1758843530193,2.58251123,3872.2,3872.1,4.732]
[1758843530971,0.6929,3873.2,3872.1,4.9661]
[1758843531172,2.58191113,3873.1,3872.2,1.552]
[1758843531386,2.58251123,3872.2,3872.1,0.02]
[1758843531715,2.58251123,3872.2,3872.1,3.192]
[1758843533683,13.76488423,3873.0,3872.1,3.4261]
[1758843534017,2.58244454,3872.3,3872.2,0.02582511]
[1758843534244,3.0,3873.7,3872.2,0.02582511]
[1758843534438,2.58219538,3872.7,3872.4,0.792]
[1758843534719,2.58224448,3872.6,3872.5,7.5341]
[1758843534920,0.6929,3873.7,3872.5,5.149]
[1758843535089,2.58224448,3872.6,3872.5,7.299]
[1758843535288,2.58144457,3873.8,3872.1,0.02]
[1758843535289,2.58251123,3872.2,3872.1,0.02]
[1758843535611,2.58240677,3872.4,3872.1,7.316]
[1758843535927,2.58197779,3873.0,3872.2,0.2341]
[1758843536222,2.58244454,3872.3,3872.2,0.2341]
[1758843536416,2.58251123,3872.2,3872.1,0.02]
[1758843536597,2.58251123,3872.2,3872.1,7.314]
[1758843537210,2.58251123,3872.2,3872.1,7.5481]
[1758843537408,0.6929,3873.2,3872.1,7.5481]
[1758843537607,2.58231251,3872.5,3872.2,0.02582511]
[1758843537810,3.0,3873.5,3872.1,0.2541]
[1758843538083,2.58238873,3872.4,3872.2,7.285]
[1758843538289,2.58189147,3873.2,3872.3,0.2341]
[1758843538502,3.0,3873.5,3872.3,0.2341]
[1758843538702,2.58237785,3872.4,3872.3,0.2341]
[1758843538908,2.58157786,3873.6,3872.3,7.5191]
[1758843539187,2.58157786,3873.6,3873.1,0.1288]
[1758843539417,0.4581,3873.5,3873.1,5.2588]
[1758843539619,0.6929,3873.5,3873.1,5.2588]
[1758843539788,2.58184446,3873.2,3873.1,5.2588]
[1758843539985,2.58184446,3873.2,3873.1,5.13]
[1758843540294,2.58184446,3873.2,3873.1,5.2588]
[1758843540493,0.2358,3873.9,3873.1,5.2588]
[1758843540714,2.58177781,3873.3,3873.2,0.02581844]
[1758843540930,2.58184446,3873.2,3872.9,0.2341]
[1758843541098,2.58175253,3873.4,3873.0,6.591]
[1758843541426,2.58184446,3873.2,3873.1,0.1288]
[1758843541725,0.6929,3873.3,3873.1,5.114]
[1758843541924,2.81664446,3873.2,3873.1,5.114]
[1758843542087,2.58184446,3873.2,3873.1,5.114]
[1758843542528,2.58251123,3872.2,3872.1,0.02]
[1758843542742,2.58251123,3872.2,3872.1,7.4098]
[1758843542909,2.58251123,3872.2,3872.1,0.1488]
[1758843543236,2.58251123,3872.2,3872.1,6.8568]
[1758843543924,2.58251123,3872.2,3872.1,0.1488]
[1758843544131,2.58251123,3872.2,3872.1,4.9908]
[1758843545091,2.58251123,3872.2,3872.1,0.1488]
[1758843545295,3.01041123,3872.2,3872.1,0.1488]
[1758843545634,3.25191123,3872.2,3871.1,0.02]
[1758843545929,2.58317834,3871.2,3871.1,0.02]
[1758843546130,0.6694,3872.2,3871.9,0.1288]
[1758843546329,2.58315363,3871.3,3871.1,7.3928]
[1758843546529,3.25197792,3872.1,3871.7,0.1288]
[1758843546530,0.6694,3872.1,3871.7,0.1288]
[1758843546747,2.58277803,3871.8,3871.7,0.1288]
[1758843546956,2.58317834,3871.2,3871.1,0.02]
[1758843547649,2.58317834,3871.2,3871.1,4.821]
[1758843548162,2.58317834,3871.2,3870.5,2.151]
[1758843548163,3.01107834,3871.2,3870.5,2.151]
[1758843548464,2.58357877,3870.6,3870.5,2.151]
[1758843548670,2.58357877,3870.6,3870.5,7.231]
[1758843549251,2.58364552,3870.5,3870.1,0.02]
[1758843549444,2.58364552,3870.5,3870.4,7.231]
[1758843549762,2.58364552,3870.5,3870.4,7.3598]
[1758843549942,2.58364552,3870.5,3870.4,0.1308]
[1758843550120,0.4279,3871.1,3870.4,7.3558]
[1758843550473,2.58364552,3870.5,3870.4,7.227]
[1758843550650,2.58364552,3870.5,3870.4,0.1308]
[1758843550861,0.6694,3871.1,3870.4,0.1308]
[1758843551043,2.58357877,3870.6,3870.5,2.151]
[1758843551420,2.58357877,3870.6,3870.5,2.2798]
[1758843551747,0.2415,3871.6,3870.5,2.2798]
[1758843551949,2.58304489,3871.4,3871.3,0.002]
[1758843552119,2.58304489,3871.4,3870.4,1.051]
[1758843552120,2.5833118,3871.0,3870.9,0.002]
[1758843552521,2.5833118,3871.0,3870.1,0.02]
[1758843552522,2.58371227,3870.4,3870.1,1e-08]
[1758843552738,2.58384579,3870.2,3870.1,1e-08]
[1758843553151,3.25324579,3870.2,3870.1,1e-08]
[1758843553934,2.58384579,3870.2,3870.1,2.74500001]
[1758843554335,0.4279,3871.1,3870.1,2.74500001]
[1758843554535,2.58384579,3870.2,3870.1,2.74500001]
[1758843554962,2.58384579,3870.2,3870.1,1e-08]
[1758843555258,2.58451359,3869.2,3869.0,7.211]
[1758843555434,2.58451359,3869.2,3869.0,7.4516]
[1758843555633,2.58364552,3870.5,3869.1,0.6795]
[1758843555843,2.58431716,3869.5,3869.1,0.6795]
[1758843556035,2.58444679,3869.3,3869.2,0.2406]
[1758843556260,2.58444679,3869.3,3869.2,7.4576]
[1758843556627,0.6694,3870.6,3869.2,7.4576]
[1758843556848,2.58444679,3869.3,3869.2,0.2406]
[1758843557158,2.58334352,3871.0,3869.3,0.4189]
[1758843557159,0.6694,3871.0,3869.3,0.4189]
[1758843557360,0.6694,3871.0,3869.4,5.3916]
[1758843557660,2.58425815,3869.6,3869.5,5.065]
[1758843557860,0.4279,3870.2,3869.1,0.02]
[1758843558064,0.4279,3870.2,3869.4,5.062]
[1758843558366,0.4279,3870.2,3869.1,0.02]
[1758843558367,2.58451359,3869.2,3869.1,0.02]
[1758843558565,2.58451359,3869.2,3869.1,7.244]
[1758843559059,2.58451359,3869.2,3869.1,7.24]
[1758843559565,2.58451359,3869.2,3869.1,7.242]
[1758843559768,2.58451359,3869.2,3869.1,0.02]
[1758843559934,3.02271359,3869.2,3869.1,5.085]
[1758843560130,2.58416979,3869.8,3869.1,5.085]
[1758843560131,0.2293,3870.5,3869.1,5.3153]
[1758843560332,0.4382,3870.4,3869.1,0.2503]
[1758843560577,2.58451359,3869.2,3869.1,0.02]
[1758843560729,0.6675,3870.4,3869.1,7.8942]
[1758843561056,2.58371476,3870.4,3869.2,0.6492]
[1758843561247,2.58311161,3871.3,3869.5,0.792]
[1758843561430,2.58317834,3871.2,3869.6,0.67504246]
[1758843561631,2.58359791,3870.6,3869.7,5.7212]
[1758843561838,2.58360724,3870.6,3869.8,2.82704112]
[1758843562063,2.58331687,3871.0,3870.0,0.792]
[1758843562262,2.58337854,3870.9,3870.5,0.1288]
[1758843562467,0.2293,3871.7,3870.6,7.4503]
[1758843562667,0.4582,3871.9,3871.5,0.1288]
[1758843562971,0.02,3871.9,3871.0,0.2303]
[1758843563167,0.02,3871.9,3871.7,0.1288]
[1758843563672,0.02,3871.9,3870.6,0.4189]
[1758843563673,0.6675,3871.8,3870.3,0.2303]
[1758843563870,2.58304489,3871.4,3871.3,0.1288]
[1758843564272,2.58311161,3871.3,3871.1,5.058]
[1758843564567,0.02,3871.9,3871.1,5.2883]
[1758843564769,2.58317834,3871.2,3871.1,5.2883]
[1758843564972,0.02,3871.9,3870.6,0.4189]
[1758843565172,2.58351202,3870.7,3870.6,6.725]
[1758843565509,2.58378381,3870.3,3870.2,6.9553]
[1758843565642,2.58411287,3869.8,3869.7,0.4189]
[1758843565968,2.58320958,3871.2,3869.7,9.5262]
[1758843565969,2.58392013,3870.1,3869.7,9.5262]
[1758843566169,2.58371338,3870.4,3869.8,5.7012]
[1758843566370,2.58297817,3871.5,3869.9,0.2303]
[1758843566371,2.58398558,3870.0,3869.9,0.2303]
[1758843566569,2.58398558,3870.0,3869.9,7.4313]
[1758843566783,2.58430807,3869.6,3869.4,0.2303]
[1758843566983,2.58427111,3869.6,3869.5,2.152]
[1758843567144,2.58427111,3869.6,3869.5,3.0303]
[1758843567474,2.58427111,3869.6,3869.5,0.2303]
[1758843567646,2.58427111,3869.6,3869.5,6.7653]
[1758843567845,0.2293,3870.5,3869.1,0.02]
[1758843568063,0.4382,3870.4,3869.2,2.89484513]
[1758843568377,2.58397905,3870.1,3869.3,1.46704446]
[1758843568675,2.58304489,3871.4,3869.7,2.344]
[1758843568853,0.4382,3871.6,3869.9,0.792]
[1758843569055,2.58297817,3871.5,3870.0,2.8012]
[1758843569252,2.5835708,3870.7,3870.1,0.2303]
[1758843569460,2.58351685,3870.7,3870.1,0.2303]
[1758843569647,2.58360872,3870.6,3870.1,0.2303]
[1758843569858,2.58365234,3870.5,3870.2,0.6492]
[1758843570155,2.5835844,3870.6,3870.3,14.1473]
[1758843570375,0.4382,3871.7,3870.4,0.6492]
[1758843570547,0.02,3871.9,3870.5,0.2303]
[1758843570747,2.58338561,3870.9,3870.5,0.2303]
[1758843571056,2.58338561,3870.9,3869.8,0.792]
[1758843571057,0.001,3870.7,3870.6,13.2863]
[1758843571403,0.001,3870.7,3870.6,15.2572]
[1758843571683,0.001,3870.7,3870.6,15.0269]
[1758843571887,0.001,3870.7,3870.6,0.2303]
[1758843572067,0.001,3870.7,3870.1,0.2303]
[1758843572463,2.58357877,3870.6,3870.2,5.217]
[1758843572688,2.58371958,3870.4,3870.2,5.4473]
[1758843573185,2.58371958,3870.4,3870.3,0.2303]
[1758843573390,2.58431321,3869.5,3869.4,0.002]
[1758843573786,3.25181321,3869.5,3869.4,0.002]
[1758843575308,0.4392,3871.1,3869.4,1.8101438]
[1758843575597,2.58404714,3869.9,3869.5,0.2303]
[1758843575810,2.58398481,3870.0,3869.6,0.22032]
[1758843575956,2.58398481,3870.0,3869.4,1.9729]
[1758843575957,2.58411287,3869.8,3869.7,7.177]
[1758843576158,0.6675,3870.6,3869.7,7.177]
[1758843576159,2.5840499,3869.9,3869.7,7.177]
[1758843576358,0.6675,3870.6,3869.7,7.4073]
[1758843576575,5.58297886,3871.5,3869.7,7.4073]
[1758843576576,2.5834008,3870.9,3869.8,0.02584112]
[1758843576785,2.58357877,3870.6,3869.7,7.4073]
[1758843577183,2.58378405,3870.3,3869.7,8.9593]
[1758843577386,2.58411287,3869.8,3869.7,6.9553]
[1758843577586,2.58411287,3869.8,3869.7,0.2303]
[1758843577764,2.58411287,3869.8,3869.7,14.1253]
[1758843578362,2.58373553,3870.4,3869.7,14.1253]
[1758843578568,2.58364552,3870.5,3869.8,7.165]
[1758843578767,2.58404609,3869.9,3869.8,7.165]
[1758843579068,2.58398112,3870.0,3869.8,7.165]
[1758843579265,2.58364552,3870.5,3869.9,5.011]
[1758843579566,0.4382,3870.6,3870.0,2.152]
[1758843579796,0.4382,3870.6,3869.7,0.2303]
[1758843579797,2.58411287,3869.8,3869.7,0.2303]
[1758843579984,2.58430974,3869.6,3869.4,0.002]
[1758843580182,2.58428365,3869.6,3869.5,5.005]
[1758843580385,0.4382,3870.4,3869.5,7.157]
[1758843580696,2.58415339,3869.8,3869.5,7.157]
[1758843580902,0.6675,3870.8,3869.5,7.157]
[1758843580903,2.58424643,3869.6,3869.5,7.157]
[1758843581202,0.001,3871.1,3869.6,1.552]
[1758843581401,2.58357877,3870.6,3869.5,0.2303]
[1758843581606,0.6675,3870.9,3869.6,13.887]
[1758843581607,2.5841779,3869.8,3869.6,13.887]
[1758843582200,2.58424643,3869.6,3869.5,0.2303]
[1758843582401,2.58419132,3869.7,3869.5,7.161]
[1758843582973,2.58431321,3869.5,3869.4,0.002]
[1758843583168,2.58425592,3869.6,3869.4,7.157]
[1758843583504,2.58431321,3869.5,3869.4,0.002]
[1758843583684,2.58431321,3869.5,3869.4,5.003]
[1758843583890,2.58365275,3870.5,3869.4,5.2333]
[1758843584092,2.58413698,3869.8,3869.5,0.02584313]
[1758843584270,2.58413698,3869.8,3869.4,5.2333]
[1758843584271,2.58405367,3869.9,3869.4,5.2333]
[1758843584475,2.58405367,3869.9,3869.5,0.2303]
[1758843584671,2.58405367,3869.9,3869.6,0.2303]
[1758843584871,0.6685,3870.7,3869.6,0.2303]
[1758843585114,2.58431321,3869.5,3869.4,0.002]
[1758843585315,2.58374992,3870.4,3870.1,0.1288]
[1758843585611,2.58451673,3870.7,3870.2,2.152]
[1758843585813,2.58377903,3870.3,3870.2,2.152]
[1758843586007,2.58370472,3870.5,3869.8,0.2303]
[1758843586225,2.58370472,3870.5,3870.2,5.014]
[1758843586403,0.001,3870.7,3870.2,5.014]
[1758843586612,0.6675,3870.6,3869.8,0.22012]
[1758843586919,0.6675,3870.6,3869.9,7.166]
[1758843586920,2.58390701,3870.2,3869.9,7.166]
[1758843587274,2.58390701,3870.2,3869.5,0.792]
[1758843587475,0.6675,3870.6,3869.4,0.002]
[1758843587706,2.58371227,3870.4,3869.5,4.111]
[1758843587909,2.58424643,3869.6,3869.5,4.111]
[1758843589189,0.6906,3870.4,3869.5,4.111]
[1758843589500,2.58431321,3869.5,3869.4,0.002]
[1758843589674,3.27491321,3869.5,3869.4,0.002]
[1758843592285,0.001,3869.9,3869.4,0.2776438]
[1758843592483,2.58505017,3869.9,3869.4,0.002]
[1758843592684,2.58411287,3869.8,3869.4,0.2518]
[1758843593016,2.58431321,3869.5,3869.4,0.002]
[1758843593192,0.001,3869.9,3869.4,0.002]
[1758843593396,0.001,3869.9,3869.5,0.2498]
[1758843593791,2.58507235,3869.9,3869.5,0.2498]
[1758843594112,0.001,3869.9,3869.6,0.27564246]
[1758843594317,0.001,3869.9,3869.7,5.78874179]
[1758843594483,0.001,3870.3,3869.9,5.344]
[1758843594677,0.001,3870.3,3869.9,0.792]
[1758843594884,0.001,3870.3,3869.4,0.002]
[1758843595119,0.001,3870.3,3869.5,7.136]
[1758843595290,0.001,3870.3,3869.5,7.3858]
[1758843595605,0.001,3870.3,3870.2,0.1288]
[1758843595817,0.001,3870.3,3870.2,5.781]
[1758843595999,0.001,3870.3,3870.2,6.0308]
[1758843598128,0.001,3870.3,3870.2,8.6017]
[1758843598703,0.001,3870.3,3870.2,14.1048]
[1758843600104,0.001,3870.3,3870.2,19.8677]
[1758843600302,0.001,3870.7,3870.6,3.37557877]
[1758843600636,0.02,3872.9,3871.6,2.344]
[1758843600941,2.58217742,3872.8,3871.7,4.978]
[1758843601237,0.02,3872.9,3871.1,0.2498]
[1758843601440,0.461,3872.5,3871.2,2.77783178]
[1758843601657,2.58259114,3872.1,3871.3,0.8498]
[1758843601852,2.58259114,3872.1,3870.9,3.0]
[1758843601853,2.58264926,3872.0,3871.4,4.98]
[1758843602013,2.58264926,3872.0,3870.9,0.2498]
[1758843602014,2.58264926,3872.0,3871.5,4.98]
[1758843602340,2.58264926,3872.0,3870.9,0.2498]
[1758843602341,2.58311721,3871.3,3870.9,0.2498]
[1758843602523,2.5830881,3871.4,3871.0,6.378]
[1758843602733,0.6906,3871.8,3870.4,0.2498]
[1758843602906,0.6906,3871.7,3870.6,3.0]
[1758843603108,2.58333855,3871.0,3870.6,3.0]
[1758843603338,0.6906,3871.7,3870.6,3.0]
[1758843603505,3.2734489,3871.7,3870.7,0.02583512]
[1758843603710,2.58336384,3871.0,3870.8,7.126]
[1758843603908,2.58337854,3870.9,3870.8,7.126]
[1758843604339,2.5827887,3871.8,3870.8,7.126]
[1758843604340,0.4603,3871.9,3870.8,7.126]
[1758843604614,0.4603,3871.9,3870.9,0.02583378]
[1758843604833,2.58324546,3871.1,3870.8,7.126]
[1758843605043,2.60276063,3871.9,3869.9,3.0]
[1758843605225,2.58391256,3870.1,3870.0,2.152]
[1758843605409,3.26291256,3870.1,3870.0,7.119]
[1758843605605,2.58431321,3869.5,3869.1,0.02]
[1758843605811,0.679,3870.1,3870.0,0.1288]
[1758843606006,0.679,3870.6,3870.0,2.702]
[1758843606224,0.679,3870.6,3870.5,0.1288]
[1758843606420,0.679,3870.6,3870.5,5.0978]
[1758843606421,3.26257877,3870.6,3870.5,5.0978]
[1758843606641,2.58431321,3869.5,3869.4,0.002]
[1758843606851,2.58364552,3870.5,3869.4,7.121]
[1758843607164,1.2636086,3870.6,3869.5,0.02584313]
[1758843607373,2.5837771,3870.4,3870.3,0.1288]
[1758843607538,0.2387,3871.0,3870.3,7.2548]
[1758843607854,2.58371227,3870.4,3870.3,7.2548]
[1758843608070,2.58371227,3870.4,3870.3,7.126]
[1758843608275,2.58371227,3870.4,3870.3,7.2548]
[1758843608478,3.26271227,3870.4,3870.3,5.0988]
[1758843608633,3.26271227,3870.4,3870.3,7.2508]
[1758843608827,3.26271227,3870.4,3870.3,0.1288]
[1758843609058,2.58431321,3869.5,3869.4,0.002]
[1758843609244,2.58431321,3869.5,3869.4,3.012]
[1758843609460,2.58431321,3869.5,3869.4,0.002]
[1758843609664,2.58431321,3869.5,3869.4,7.122]
[1758843610046,2.58431321,3869.5,3869.4,0.002]
[1758843610247,2.58431321,3869.5,3869.4,2.664]
[1758843610248,3.78016496,3869.5,3869.4,2.664]
[1758843610455,2.58451359,3869.2,3869.0,0.002]
[1758843610653,2.58451359,3869.2,3869.1,1e-08]